[Event "Betsys MČR v online bleskovém šachu 2021"]
[Site "Chess.com"]
[Date "2021.04.17"]
[Round "6"]
[White "Simaril76"]
[Black "sharpi5135"]
[Result "1-0"]
[WhiteElo "712"]
[BlackElo "759"]
[TimeControl "180+1"]
[EndTime "9:57:32 PDT"]
[Termination "Uživatel Simaril76 zvítězil na čas"]

1. b3 {[%clk 0:03:00.9]} 1... g6 {[%clk 0:02:59.9]} 2. e3 {[%clk 0:03:01.4]}
2... Bg7 {[%clk 0:02:59.1]} 3. Nc3 {[%clk 0:02:59.1]} 3... Nf6 {[%clk
0:02:57.3]} 4. Bb2 {[%clk 0:02:59]} 4... Nh5 {[%clk 0:02:52.4]} 5. f4 {[%clk
0:02:51.3]} 5... e6 {[%clk 0:02:50.2]} 6. Nf3 {[%clk 0:02:50.4]} 6... Nc6 {[%clk
0:02:40.5]} 7. g3 {[%clk 0:02:48.8]} 7... O-O {[%clk 0:02:34.5]} 8. Qe2 {[%clk
0:02:45]} 8... Nf6 {[%clk 0:02:33.2]} 9. O-O-O {[%clk 0:02:45]} 9... Ng4 {[%clk
0:02:30.6]} 10. Nd4 {[%clk 0:02:42.8]} 10... Nxd4 {[%clk 0:02:28.7]} 11. exd4
{[%clk 0:02:40.3]} 11... Nf6 {[%clk 0:02:27.2]} 12. g4 {[%clk 0:02:37]} 12... d5
{[%clk 0:02:25.5]} 13. g5 {[%clk 0:02:26.7]} 13... Nd7 {[%clk 0:02:21.3]} 14.
Bg2 {[%clk 0:02:19.4]} 14... b6 {[%clk 0:02:19.1]} 15. h4 {[%clk 0:02:01.4]}
15... c6 {[%clk 0:02:04.8]} 16. h5 {[%clk 0:02:01.4]} 16... Bxd4 {[%clk
0:01:57.1]} 17. hxg6 {[%clk 0:01:54]} 17... fxg6 {[%clk 0:01:54.1]} 18. Rh4
{[%clk 0:01:39]} 18... Nc5 {[%clk 0:01:38.8]} 19. Rdh1 {[%clk 0:01:34.2]} 19...
Rf7 {[%clk 0:01:31.4]} 20. d3 {[%clk 0:01:03.6]} 20... Qe7 {[%clk 0:01:20.8]}
21. f5 {[%clk 0:00:50.7]} 21... exf5 {[%clk 0:01:04.8]} 22. Rxd4 {[%clk
0:00:45.5]} 22... Qxe2 {[%clk 0:00:59.1]} 23. Nxe2 {[%clk 0:00:45]} 23... Ne6
{[%clk 0:00:44]} 24. Rdh4 {[%clk 0:00:35.7]} 24... Nxg5 {[%clk 0:00:40.7]} 25.
Nd4 {[%clk 0:00:25.6]} 25... Bb7 {[%clk 0:00:35.2]} 26. Bc3 {[%clk 0:00:18.4]}
26... Re8 {[%clk 0:00:32.3]} 27. Nf3 {[%clk 0:00:16.6]} 27... Nxf3 {[%clk
0:00:25]} 28. Bxf3 {[%clk 0:00:16.1]} 28... Ree7 {[%clk 0:00:20.2]} 29. Rd1
{[%clk 0:00:14.1]} 29... Kf8 {[%clk 0:00:15.9]} 30. Rhh1 {[%clk 0:00:14.2]}
30... h5 {[%clk 0:00:12.5]} 31. Rde1 {[%clk 0:00:14.4]} 31... Ba6 {[%clk
0:00:03.8]} 32. Rxe7 {[%clk 0:00:13.1]} 32... Rxe7 {[%clk 0:00:03.3]} 33. d4
{[%clk 0:00:11.3]} 1-0

[Event "Betsys MČR v online bleskovém šachu 2021"]
[Site "Chess.com"]
[Date "2021.04.17"]
[Round "6"]
[White "Lipican"]
[Black "Nimrod64"]
[Result "1-0"]
[WhiteElo "2104"]
[BlackElo "2261"]
[TimeControl "180+1"]
[EndTime "9:57:34 PDT"]
[Termination "Uživatel Lipican zvítězil na čas"]

1. d4 {[%clk 0:03:00.9]} 1... d5 {[%clk 0:02:59.3]} 2. Nf3 {[%clk 0:03:00]} 2...
Nf6 {[%clk 0:02:56.8]} 3. c4 {[%clk 0:02:59.2]} 3... e6 {[%clk 0:02:56.4]} 4. g3
{[%clk 0:02:58.7]} 4... Nbd7 {[%clk 0:02:55.2]} 5. Qc2 {[%clk 0:02:57.1]} 5...
c6 {[%clk 0:02:54.6]} 6. Bg2 {[%clk 0:02:56.5]} 6... Be7 {[%clk 0:02:54.4]} 7.
Nbd2 {[%clk 0:02:55.8]} 7... O-O {[%clk 0:02:53.9]} 8. O-O {[%clk 0:02:55.6]}
8... b6 {[%clk 0:02:53.5]} 9. e4 {[%clk 0:02:54.8]} 9... a5 {[%clk 0:02:52.8]}
10. Rd1 {[%clk 0:02:47.8]} 10... Ba6 {[%clk 0:02:52.1]} 11. b3 {[%clk
0:02:41.8]} 11... Rc8 {[%clk 0:02:48.7]} 12. Bb2 {[%clk 0:02:41.4]} 12... h6
{[%clk 0:02:41.8]} 13. Rac1 {[%clk 0:02:39.4]} 13... Nb8 {[%clk 0:02:34.6]} 14.
Qb1 {[%clk 0:02:33.6]} 14... Bb4 {[%clk 0:02:31.9]} 15. a3 {[%clk 0:02:26.1]}
15... Bxd2 {[%clk 0:02:30.9]} 16. Nxd2 {[%clk 0:02:25.4]} 16... Qe7 {[%clk
0:02:26.3]} 17. Re1 {[%clk 0:02:17.3]} 17... Qa7 {[%clk 0:02:12.7]} 18. h3
{[%clk 0:02:06.8]} 18... Rfd8 {[%clk 0:02:10.7]} 19. e5 {[%clk 0:02:02.8]} 19...
Nfd7 {[%clk 0:02:09.4]} 20. cxd5 {[%clk 0:02:02.5]} 20... cxd5 {[%clk
0:02:07.3]} 21. Nf1 {[%clk 0:01:54.8]} 21... Nc6 {[%clk 0:01:59.8]} 22. Ne3
{[%clk 0:01:53.6]} 22... Ne7 {[%clk 0:01:58.6]} 23. g4 {[%clk 0:01:50.5]} 23...
Ng6 {[%clk 0:01:54.2]} 24. Rxc8 {[%clk 0:01:39.6]} 24... Rxc8 {[%clk 0:01:52.5]}
25. Rc1 {[%clk 0:01:39.5]} 25... Rxc1+ {[%clk 0:01:42.6]} 26. Qxc1 {[%clk
0:01:37]} 26... Nf4 {[%clk 0:01:42.1]} 27. Qc6 {[%clk 0:01:35.2]} 27... Kh7
{[%clk 0:01:30.6]} 28. Qd6 {[%clk 0:01:25.2]} 28... g5 {[%clk 0:01:21.5]} 29.
Qe7 {[%clk 0:01:23.3]} 29... Kg7 {[%clk 0:01:20.4]} 30. Kh2 {[%clk 0:01:08.7]}
30... Qc7 {[%clk 0:01:11.3]} 31. Kg3 {[%clk 0:01:06.6]} 31... Qc8 {[%clk
0:00:54.4]} 32. h4 {[%clk 0:01:01.8]} 32... Ng6 {[%clk 0:00:52.6]} 33. Qd6
{[%clk 0:00:58.2]} 33... Nxh4 {[%clk 0:00:50.7]} 34. Bxd5 {[%clk 0:00:51.5]}
34... exd5 {[%clk 0:00:45.2]} 35. Nxd5 {[%clk 0:00:51.4]} 35... Ng6 {[%clk
0:00:30.3]} 36. Nc7 {[%clk 0:00:45]} 36... Ndf8 {[%clk 0:00:20.3]} 37. d5 {[%clk
0:00:38.8]} 37... Kh7 {[%clk 0:00:11.1]} 38. e6 {[%clk 0:00:35.7]} 38... fxe6
{[%clk 0:00:09.5]} 39. dxe6 {[%clk 0:00:35.2]} 39... Bb7 {[%clk 0:00:03.1]} 40.
e7 {[%clk 0:00:31.4]} 40... Kg8 {[%clk 0:00:01.3]} 41. e8=Q {[%clk 0:00:29.4]}
1-0

[Event "Betsys MČR v online bleskovém šachu 2021"]
[Site "Chess.com"]
[Date "2021.04.17"]
[Round "6"]
[White "l_pavlasek"]
[Black "Gicko13"]
[Result "0-1"]
[WhiteElo "1683"]
[BlackElo "2032"]
[TimeControl "180+1"]
[EndTime "9:57:34 PDT"]
[Termination "Uživatel Gicko13 zvítězil na čas"]

1. e4 {[%clk 0:03:00.9]} 1... c5 {[%clk 0:02:58.7]} 2. Nf3 {[%clk 0:02:58.9]}
2... d6 {[%clk 0:02:57.6]} 3. d4 {[%clk 0:02:58.8]} 3... cxd4 {[%clk 0:02:57.7]}
4. Nxd4 {[%clk 0:02:58.9]} 4... Nf6 {[%clk 0:02:58]} 5. Nc3 {[%clk 0:02:58.4]}
5... g6 {[%clk 0:02:58.7]} 6. Be3 {[%clk 0:02:53.4]} 6... Bg7 {[%clk 0:02:58.1]}
7. Bc4 {[%clk 0:02:51.3]} 7... O-O {[%clk 0:02:56.7]} 8. O-O {[%clk 0:02:49]}
8... Nc6 {[%clk 0:02:55.4]} 9. Qd2 {[%clk 0:02:39.1]} 9... Ng4 {[%clk
0:02:29.4]} 10. Nxc6 {[%clk 0:02:24]} 10... bxc6 {[%clk 0:02:22]} 11. Be2 {[%clk
0:02:18.3]} 11... Nxe3 {[%clk 0:02:20.7]} 12. Qxe3 {[%clk 0:02:18.2]} 12... Be6
{[%clk 0:02:10]} 13. a3 {[%clk 0:02:17.1]} 13... Qb6 {[%clk 0:02:03.2]} 14. Qxb6
{[%clk 0:02:05.4]} 14... axb6 {[%clk 0:02:04.1]} 15. Rab1 {[%clk 0:02:00.7]}
15... b5 {[%clk 0:01:55.1]} 16. Nd1 {[%clk 0:01:35.7]} 16... Ra4 {[%clk
0:01:44.8]} 17. Bf3 {[%clk 0:01:31.7]} 17... b4 {[%clk 0:01:14.2]} 18. axb4
{[%clk 0:01:25.3]} 18... Rxb4 {[%clk 0:01:15.1]} 19. b3 {[%clk 0:01:17.5]} 19...
Rfb8 {[%clk 0:01:06]} 20. Ne3 {[%clk 0:01:15.3]} 20... Bd4 {[%clk 0:01:01.2]}
21. Nd1 {[%clk 0:00:58.9]} 21... Be5 {[%clk 0:00:51.9]} 22. Ne3 {[%clk
0:00:57.2]} 22... h5 {[%clk 0:00:49.9]} 23. h3 {[%clk 0:00:49.9]} 23... Kg7
{[%clk 0:00:48.1]} 24. Rbd1 {[%clk 0:00:40.1]} 24... Ra8 {[%clk 0:00:41.5]} 25.
Rb1 {[%clk 0:00:30.5]} 25... Ra2 {[%clk 0:00:40.2]} 26. c4 {[%clk 0:00:23.2]}
26... Bf4 {[%clk 0:00:23.3]} 27. Rfe1 {[%clk 0:00:15.9]} 27... Bxe3 {[%clk
0:00:19.4]} 28. Rxe3 {[%clk 0:00:15.8]} 28... Ra3 {[%clk 0:00:19.2]} 29. e5
{[%clk 0:00:13.1]} 29... c5 {[%clk 0:00:16.4]} 30. exd6 {[%clk 0:00:10.7]} 30...
exd6 {[%clk 0:00:17.3]} 31. Bd5 {[%clk 0:00:08.6]} 31... Bxd5 {[%clk 0:00:16.3]}
32. cxd5 {[%clk 0:00:08.6]} 32... c4 {[%clk 0:00:16.5]} 33. Rc1 {[%clk
0:00:03.6]} 33... cxb3 {[%clk 0:00:15.3]} 34. Rxb3 {[%clk 0:00:03.1]} 34...
Raxb3 {[%clk 0:00:15.1]} 35. Rc6 {[%clk 0:00:01.1]} 35... Rb6 {[%clk 0:00:15]}
0-1

[Event "Betsys MČR v online bleskovém šachu 2021"]
[Site "Chess.com"]
[Date "2021.04.17"]
[Round "6"]
[White "PremetFugas"]
[Black "trosecnik"]
[Result "1-0"]
[WhiteElo "2134"]
[BlackElo "1838"]
[TimeControl "180+1"]
[EndTime "9:57:35 PDT"]
[Termination "Uživatel PremetFugas zvítězil na čas"]

1. c4 {[%clk 0:03:00.9]} 1... e5 {[%clk 0:02:54.7]} 2. Nc3 {[%clk 0:02:59.9]}
2... Nf6 {[%clk 0:02:53.5]} 3. Nf3 {[%clk 0:02:59]} 3... Nc6 {[%clk 0:02:53.4]}
4. e4 {[%clk 0:02:58]} 4... Bb4 {[%clk 0:02:36.6]} 5. d3 {[%clk 0:02:52.8]} 5...
O-O {[%clk 0:02:33.7]} 6. Be2 {[%clk 0:02:52.2]} 6... d6 {[%clk 0:02:33.5]} 7.
h3 {[%clk 0:02:50.2]} 7... Nd4 {[%clk 0:02:28.2]} 8. a3 {[%clk 0:02:41.1]} 8...
Bxc3+ {[%clk 0:02:24.1]} 9. bxc3 {[%clk 0:02:40.5]} 9... Nxf3+ {[%clk 0:02:25]}
10. Bxf3 {[%clk 0:02:40]} 10... Re8 {[%clk 0:02:16.6]} 11. O-O {[%clk 0:02:37]}
11... Bd7 {[%clk 0:02:09.4]} 12. Re1 {[%clk 0:02:31.3]} 12... Bc6 {[%clk
0:02:08.5]} 13. Be3 {[%clk 0:02:23.3]} 13... Qd7 {[%clk 0:02:03.4]} 14. a4
{[%clk 0:02:18.1]} 14... b6 {[%clk 0:01:55.9]} 15. a5 {[%clk 0:02:15.6]} 15...
bxa5 {[%clk 0:01:39.4]} 16. Rxa5 {[%clk 0:02:15]} 16... a6 {[%clk 0:01:40]} 17.
Qa1 {[%clk 0:02:12.8]} 17... Bb7 {[%clk 0:01:38.2]} 18. Rb1 {[%clk 0:02:10.9]}
18... c5 {[%clk 0:01:36.7]} 19. Bd1 {[%clk 0:02:09.5]} 19... Ra7 {[%clk
0:01:13.5]} 20. Rb6 {[%clk 0:02:01.2]} 20... Qc7 {[%clk 0:01:08.7]} 21. Rb2
{[%clk 0:01:54]} 21... Rb8 {[%clk 0:00:57.9]} 22. Ra3 {[%clk 0:01:47.8]} 22...
Bc8 {[%clk 0:00:47.9]} 23. Rab3 {[%clk 0:01:44.7]} 23... Rab7 {[%clk 0:00:45.7]}
24. Qb1 {[%clk 0:01:40.1]} 24... Rxb3 {[%clk 0:00:32.1]} 25. Rxb3 {[%clk
0:01:39.6]} 25... Rxb3 {[%clk 0:00:31.9]} 26. Qxb3 {[%clk 0:01:39.1]} 26... a5
{[%clk 0:00:31.8]} 27. Kh2 {[%clk 0:01:30.3]} 27... Nd7 {[%clk 0:00:28.3]} 28.
Qb5 {[%clk 0:01:27.2]} 28... Kf8 {[%clk 0:00:24.5]} 29. f3 {[%clk 0:01:22.6]}
29... Ke7 {[%clk 0:00:21.3]} 30. Ba4 {[%clk 0:01:19.2]} 30... Qb6 {[%clk
0:00:12.6]} 31. Bg5+ {[%clk 0:01:02.8]} 31... f6 {[%clk 0:00:12.7]} 32. Be3
{[%clk 0:01:01.4]} 32... g6 {[%clk 0:00:11.7]} 33. g3 {[%clk 0:00:55.5]} 33...
Qxb5 {[%clk 0:00:04.9]} 34. cxb5 {[%clk 0:00:54.5]} 34... Nb6 {[%clk 0:00:05.1]}
35. Bb3 {[%clk 0:00:53.1]} 35... a4 {[%clk 0:00:04.8]} 36. Ba2 {[%clk
0:00:52.5]} 36... Be6 {[%clk 0:00:04.2]} 37. c4 {[%clk 0:00:51.9]} 37... Kd8
{[%clk 0:00:03.2]} 38. Bd2 {[%clk 0:00:51.5]} 38... Kc7 {[%clk 0:00:02.9]} 39.
Ba5 {[%clk 0:00:49.8]} 39... f5 {[%clk 0:00:03.2]} 40. Kg2 {[%clk 0:00:48]}
40... fxe4 {[%clk 0:00:02.5]} 41. fxe4 {[%clk 0:00:47.9]} 41... h5 {[%clk
0:00:02.9]} 42. Bb1 {[%clk 0:00:35.3]} 42... g5 {[%clk 0:00:02.3]} 43. Bd2
{[%clk 0:00:31.4]} 1-0

[Event "Betsys MČR v online bleskovém šachu 2021"]
[Site "Chess.com"]
[Date "2021.04.17"]
[Round "6"]
[White "Klapuch05"]
[Black "matykov"]
[Result "0-1"]
[WhiteElo "1572"]
[BlackElo "2013"]
[TimeControl "180+1"]
[EndTime "9:57:35 PDT"]
[Termination "Uživatel matykov zvítězil matem"]

1. e4 {[%clk 0:02:59.8]} 1... e6 {[%clk 0:02:59.6]} 2. d4 {[%clk 0:02:58.8]}
2... d5 {[%clk 0:03:00.2]} 3. Nc3 {[%clk 0:02:58.8]} 3... Bb4 {[%clk 0:02:59.9]}
4. e5 {[%clk 0:02:54.5]} 4... c5 {[%clk 0:03:00.2]} 5. Bd2 {[%clk 0:02:52.8]}
5... Nc6 {[%clk 0:02:59.4]} 6. a3 {[%clk 0:02:52.4]} 6... Bxc3 {[%clk
0:02:53.6]} 7. Bxc3 {[%clk 0:02:52.6]} 7... Nxd4 {[%clk 0:02:53.7]} 8. Bxd4
{[%clk 0:02:52.1]} 8... cxd4 {[%clk 0:02:53.5]} 9. Qxd4 {[%clk 0:02:53]} 9...
Ne7 {[%clk 0:02:53.8]} 10. Nf3 {[%clk 0:02:52.8]} 10... O-O {[%clk 0:02:52]} 11.
Bd3 {[%clk 0:02:51.6]} 11... Qa5+ {[%clk 0:02:47.6]} 12. Qb4 {[%clk 0:02:48.5]}
12... Qxb4+ {[%clk 0:02:43.1]} 13. axb4 {[%clk 0:02:49.4]} 13... a6 {[%clk
0:02:43]} 14. b5 {[%clk 0:02:48.7]} 14... a5 {[%clk 0:02:39.1]} 15. b6 {[%clk
0:02:36.7]} 15... Bd7 {[%clk 0:02:37.3]} 16. Nd4 {[%clk 0:02:36]} 16... Nc6
{[%clk 0:02:35.2]} 17. Nxc6 {[%clk 0:02:20.7]} 17... Bxc6 {[%clk 0:02:28.8]} 18.
f3 {[%clk 0:02:16.9]} 18... Rfc8 {[%clk 0:02:15.9]} 19. Kf2 {[%clk 0:02:08.5]}
19... Kf8 {[%clk 0:02:14.2]} 20. Ra3 {[%clk 0:02:08.2]} 20... Bd7 {[%clk
0:02:04]} 21. Rha1 {[%clk 0:02:06.4]} 21... a4 {[%clk 0:01:23.1]} 22. b3 {[%clk
0:01:56.4]} 22... Ke7 {[%clk 0:01:22.9]} 23. bxa4 {[%clk 0:01:54.8]} 23... Ra5
{[%clk 0:01:21.2]} 24. Ke3 {[%clk 0:01:42.7]} 24... Rca8 {[%clk 0:01:16.2]} 25.
c4 {[%clk 0:01:26.7]} 25... dxc4 {[%clk 0:01:13.5]} 26. Bxc4 {[%clk 0:01:25.9]}
26... Rxe5+ {[%clk 0:01:13.7]} 27. Kd3 {[%clk 0:01:18.5]} 27... Rea5 {[%clk
0:01:11.5]} 28. Bb3 {[%clk 0:01:13.2]} 28... R8a6 {[%clk 0:01:10.9]} 29. Kc4
{[%clk 0:00:51.2]} 29... Rxb6 {[%clk 0:01:10]} 30. R1a2 {[%clk 0:00:43.4]} 30...
Kf6 {[%clk 0:00:52.8]} 31. Bc2 {[%clk 0:00:41.9]} 31... Bc6 {[%clk 0:00:42.6]}
32. Rd3 {[%clk 0:00:36.8]} 32... Bd5+ {[%clk 0:00:41.8]} 33. Rxd5 {[%clk
0:00:35.3]} 33... Rxd5 {[%clk 0:00:35.6]} 34. a5 {[%clk 0:00:31.2]} 34... Rc6+
{[%clk 0:00:35.7]} 35. Kb4 {[%clk 0:00:29.8]} 35... Rd2 {[%clk 0:00:33.7]} 36.
Kb3 {[%clk 0:00:26.1]} 36... Ke5 {[%clk 0:00:28.6]} 37. Be4 {[%clk 0:00:24.7]}
37... Rxa2 {[%clk 0:00:27.1]} 38. Kxa2 {[%clk 0:00:25.6]} 38... Ra6 {[%clk
0:00:26.6]} 39. Bxb7 {[%clk 0:00:23.8]} 39... Rxa5+ {[%clk 0:00:27.2]} 40. Kb3
{[%clk 0:00:18.7]} 40... Rb5+ {[%clk 0:00:27.7]} 41. Kc3 {[%clk 0:00:19]} 41...
Rxb7 {[%clk 0:00:28.6]} 42. Kd2 {[%clk 0:00:19.7]} 42... Rb2+ {[%clk 0:00:28.8]}
43. Ke3 {[%clk 0:00:20.6]} 43... Rxg2 {[%clk 0:00:29]} 44. f4+ {[%clk 0:00:20]}
44... Kf5 {[%clk 0:00:28.4]} 45. Kf3 {[%clk 0:00:20.9]} 45... Rxh2 {[%clk
0:00:28.5]} 46. Kg3 {[%clk 0:00:21.8]} 46... Ra2 {[%clk 0:00:28.2]} 47. Kh4
{[%clk 0:00:21.8]} 47... Kxf4 {[%clk 0:00:26.8]} 48. Kh3 {[%clk 0:00:21.5]}
48... e5 {[%clk 0:00:25.2]} 49. Kh4 {[%clk 0:00:21.7]} 49... Rh2# {[%clk
0:00:25.5]} 0-1

[Event "Betsys MČR v online bleskovém šachu 2021"]
[Site "Chess.com"]
[Date "2021.04.17"]
[Round "6"]
[White "JosefBara"]
[Black "catanist19"]
[Result "1/2-1/2"]
[WhiteElo "1309"]
[BlackElo "1731"]
[TimeControl "180+1"]
[EndTime "9:57:35 PDT"]
[Termination "Remíza – nedostatek materiálu"]

1. d4 {[%clk 0:03:00.9]} 1... d5 {[%clk 0:02:58.7]} 2. c4 {[%clk 0:03:00.9]}
2... e6 {[%clk 0:02:58.1]} 3. Nc3 {[%clk 0:03:01.2]} 3... Nf6 {[%clk 0:02:56.8]}
4. Nf3 {[%clk 0:03:01.5]} 4... c6 {[%clk 0:02:54.9]} 5. Bg5 {[%clk 0:03:01.5]}
5... Be7 {[%clk 0:02:53.9]} 6. cxd5 {[%clk 0:03:01.5]} 6... exd5 {[%clk
0:02:53.3]} 7. e3 {[%clk 0:03:00.4]} 7... Bf5 {[%clk 0:02:51.7]} 8. Bd3 {[%clk
0:03:00]} 8... Bxd3 {[%clk 0:02:51]} 9. Qxd3 {[%clk 0:03:00.1]} 9... Nbd7 {[%clk
0:02:49.1]} 10. O-O {[%clk 0:02:57.2]} 10... O-O {[%clk 0:02:47.7]} 11. Rac1
{[%clk 0:02:57]} 11... h6 {[%clk 0:02:41.4]} 12. Bh4 {[%clk 0:02:56.6]} 12...
Ne4 {[%clk 0:02:35.4]} 13. Bxe7 {[%clk 0:02:55.1]} 13... Qxe7 {[%clk 0:02:33.9]}
14. a3 {[%clk 0:02:53.7]} 14... Ndf6 {[%clk 0:02:30]} 15. Ne5 {[%clk 0:02:51.5]}
15... Rac8 {[%clk 0:02:21.2]} 16. Nxe4 {[%clk 0:02:43.7]} 16... Nxe4 {[%clk
0:02:18.4]} 17. b4 {[%clk 0:02:39.1]} 17... Nd6 {[%clk 0:02:12.4]} 18. h3 {[%clk
0:02:35.4]} 18... Rfe8 {[%clk 0:01:55.3]} 19. f3 {[%clk 0:02:22]} 19... f6
{[%clk 0:01:49]} 20. Ng4 {[%clk 0:02:21.3]} 20... h5 {[%clk 0:01:44.4]} 21. Nf2
{[%clk 0:02:16.2]} 21... Qxe3 {[%clk 0:01:41.7]} 22. Rfe1 {[%clk 0:01:56.2]}
22... Qxd3 {[%clk 0:01:37.4]} 23. Nxd3 {[%clk 0:01:55.9]} 23... Nc4 {[%clk
0:01:34.1]} 24. a4 {[%clk 0:01:49.8]} 24... b6 {[%clk 0:01:25.1]} 25. Nf4 {[%clk
0:01:44.8]} 25... Nb2 {[%clk 0:01:15.3]} 26. a5 {[%clk 0:01:37]} 26... Rxe1+
{[%clk 0:01:08.4]} 27. Rxe1 {[%clk 0:01:36.1]} 27... bxa5 {[%clk 0:01:03.8]} 28.
bxa5 {[%clk 0:01:35.5]} 28... Nc4 {[%clk 0:01:03]} 29. a6 {[%clk 0:01:34]} 29...
Rb8 {[%clk 0:01:00.6]} 30. Nxh5 {[%clk 0:01:32.8]} 30... Rb6 {[%clk 0:00:56.7]}
31. Ra1 {[%clk 0:01:29.8]} 31... Kf7 {[%clk 0:00:50.6]} 32. Nf4 {[%clk
0:01:27.9]} 32... Nd2 {[%clk 0:00:46.3]} 33. h4 {[%clk 0:01:22.5]} 33... Rb1+
{[%clk 0:00:44.5]} 34. Rxb1 {[%clk 0:01:21.6]} 34... Nxb1 {[%clk 0:00:44.3]} 35.
g4 {[%clk 0:01:21.1]} 35... Nc3 {[%clk 0:00:41.2]} 36. g5 {[%clk 0:01:20.7]}
36... fxg5 {[%clk 0:00:39.9]} 37. hxg5 {[%clk 0:01:20.5]} 37... Ke7 {[%clk
0:00:36.7]} 38. Nh5 {[%clk 0:01:18.3]} 38... g6 {[%clk 0:00:33.2]} 39. Nf6
{[%clk 0:01:17.2]} 39... Ne2+ {[%clk 0:00:30.3]} 40. Kf2 {[%clk 0:01:16.5]}
40... Nxd4 {[%clk 0:00:30.1]} 41. f4 {[%clk 0:01:15.6]} 41... Ne6 {[%clk
0:00:26.3]} 42. Kf3 {[%clk 0:01:14]} 42... Nc5 {[%clk 0:00:25.8]} 43. Kg4 {[%clk
0:01:09.3]} 43... Nxa6 {[%clk 0:00:25]} 44. f5 {[%clk 0:01:09.8]} 44... Kf7
{[%clk 0:00:21.5]} 45. fxg6+ {[%clk 0:01:08.2]} 45... Kxg6 {[%clk 0:00:21.1]}
46. Nd7 {[%clk 0:01:04.7]} 46... d4 {[%clk 0:00:16.8]} 47. Ne5+ {[%clk
0:01:03.7]} 47... Kg7 {[%clk 0:00:15.9]} 48. Nxc6 {[%clk 0:01:03.8]} 48... d3
{[%clk 0:00:14.2]} 49. Kf3 {[%clk 0:01:03.3]} 49... Nc5 {[%clk 0:00:13.1]} 50.
Nxa7 {[%clk 0:01:01.3]} 50... Kg6 {[%clk 0:00:11.5]} 51. Nb5 {[%clk 0:01:00]}
51... Kxg5 {[%clk 0:00:11.1]} 52. Nc3 {[%clk 0:00:59.4]} 52... Kf5 {[%clk
0:00:10.4]} 53. Ke3 {[%clk 0:00:59.8]} 53... Ke5 {[%clk 0:00:09.8]} 54. Ne2
{[%clk 0:00:54.5]} 54... dxe2 {[%clk 0:00:08.2]} 55. Kxe2 {[%clk 0:00:54.7]}
1/2-1/2

[Event "Betsys MČR v online bleskovém šachu 2021"]
[Site "Chess.com"]
[Date "2021.04.17"]
[Round "6"]
[White "EDA16"]
[Black "Terilka"]
[Result "0-1"]
[WhiteElo "1282"]
[BlackElo "1527"]
[TimeControl "180+1"]
[EndTime "9:57:35 PDT"]
[Termination "Uživatel Terilka zvítězil matem"]

1. d4 {[%clk 0:03:00.6]} 1... Nf6 {[%clk 0:02:58.8]} 2. c4 {[%clk 0:02:59.4]}
2... g6 {[%clk 0:02:58.5]} 3. Nc3 {[%clk 0:02:59.1]} 3... d5 {[%clk 0:02:58.7]}
4. cxd5 {[%clk 0:02:57.1]} 4... Nxd5 {[%clk 0:02:59.6]} 5. e4 {[%clk 0:02:55.5]}
5... Nxc3 {[%clk 0:02:58.9]} 6. bxc3 {[%clk 0:02:55.1]} 6... Bg7 {[%clk
0:02:59.2]} 7. Bg5 {[%clk 0:02:53.1]} 7... c5 {[%clk 0:02:58.6]} 8. Nf3 {[%clk
0:02:50]} 8... Qa5 {[%clk 0:02:58]} 9. Bd2 {[%clk 0:02:46.6]} 9... O-O {[%clk
0:02:53.9]} 10. Bc4 {[%clk 0:02:43.9]} 10... Bg4 {[%clk 0:02:50.3]} 11. O-O
{[%clk 0:02:41.4]} 11... Nc6 {[%clk 0:02:41]} 12. h3 {[%clk 0:02:37.6]} 12...
Bxf3 {[%clk 0:02:37]} 13. Qxf3 {[%clk 0:02:36.6]} 13... cxd4 {[%clk 0:02:36.9]}
14. cxd4 {[%clk 0:02:31.6]} 14... Qxd2 {[%clk 0:02:35.9]} 15. Rab1 {[%clk
0:02:17.9]} 15... Qxd4 {[%clk 0:02:30.8]} 16. Rfc1 {[%clk 0:02:10.8]} 16... Ne5
{[%clk 0:02:24.6]} 17. Qc3 {[%clk 0:02:06.1]} 17... Qxc3 {[%clk 0:02:18.6]} 18.
Rxc3 {[%clk 0:02:05.5]} 18... Rac8 {[%clk 0:02:17.2]} 19. Rbc1 {[%clk
0:01:59.7]} 19... Nc6 {[%clk 0:01:50.9]} 20. R3c2 {[%clk 0:01:48.4]} 20... Nd4
{[%clk 0:01:49.9]} 21. Bxf7+ {[%clk 0:01:42.5]} 21... Kxf7 {[%clk 0:01:42.5]}
22. Rxc8 {[%clk 0:01:39.1]} 22... Ne2+ {[%clk 0:01:40.8]} 23. Kh2 {[%clk
0:01:31.6]} 23... Nxc1 {[%clk 0:01:39.5]} 24. Rxc1 {[%clk 0:01:26]} 24... Be5+
{[%clk 0:01:39.2]} 25. Kg1 {[%clk 0:01:22.9]} 25... Ke6 {[%clk 0:01:34.3]} 26.
Rb1 {[%clk 0:01:17.5]} 26... b6 {[%clk 0:01:32.9]} 27. a4 {[%clk 0:01:15.3]}
27... Kd6 {[%clk 0:01:30.6]} 28. f3 {[%clk 0:01:13.2]} 28... Bd4+ {[%clk
0:01:29.1]} 29. Kh1 {[%clk 0:01:11.5]} 29... e5 {[%clk 0:01:24.1]} 30. Rd1
{[%clk 0:01:05.5]} 30... Rc8 {[%clk 0:01:20.6]} 31. f4 {[%clk 0:00:58.6]} 31...
Rc4 {[%clk 0:01:16.2]} 32. fxe5+ {[%clk 0:00:50.1]} 32... Kxe5 {[%clk
0:01:15.4]} 33. Rf1 {[%clk 0:00:42.7]} 33... Rxa4 {[%clk 0:01:09.8]} 34. Rf7
{[%clk 0:00:41.9]} 34... Ra1+ {[%clk 0:01:08.6]} 35. Kh2 {[%clk 0:00:39.7]}
35... Kxe4 {[%clk 0:00:59.5]} 36. Rxh7 {[%clk 0:00:36.8]} 36... Be5+ {[%clk
0:00:59.2]} 37. g3 {[%clk 0:00:33.7]} 37... Ra2+ {[%clk 0:00:58.1]} 38. Kg1
{[%clk 0:00:32.8]} 38... Bxg3 {[%clk 0:00:57.4]} 39. h4 {[%clk 0:00:29.4]} 39...
Bf4 {[%clk 0:00:50]} 40. h5 {[%clk 0:00:27.9]} 40... gxh5 {[%clk 0:00:37.8]} 41.
Rxh5 {[%clk 0:00:26.4]} 41... a5 {[%clk 0:00:34.3]} 42. Rh4 {[%clk 0:00:26.1]}
42... a4 {[%clk 0:00:32.2]} 43. Kf1 {[%clk 0:00:25]} 43... a3 {[%clk 0:00:32.1]}
44. Ke1 {[%clk 0:00:24.6]} 44... Rb2 {[%clk 0:00:31.1]} 45. Kd1 {[%clk
0:00:23.1]} 45... a2 {[%clk 0:00:29.7]} 46. Ke1 {[%clk 0:00:16.8]} 46... a1=Q#
{[%clk 0:00:28.9]} 0-1